bitfinex/quotes_SOLUSD_20240616
["timestamp","ask_amount","ask_price","bid_price","bid_amount"]
[1718517033501,15.3859,144.29,144.24,6.686]
[1718517034092,2.5647,144.27,144.24,6.686]
[1718517034482,23.0817,144.27,144.24,6.686]
[1718517034805,25.6464,144.27,144.21,13.3227]
[1718517035374,32.86766439,144.28,144.21,13.3227]
[1718517035821,32.86776439,144.28,144.21,13.3227]
[1718517036112,14.91596439,144.28,144.21,13.3227]
[1718517036475,9.78696439,144.28,144.21,13.3227]
[1718517037473,14.91586439,144.28,144.21,13.3227]
[1718517038173,2.5646,144.27,144.21,13.3227]
[1718517038575,7.6938,144.27,144.21,13.3227]
[1718517038796,15.3877,144.27,144.21,13.3227]
[1718517039006,2.5648,144.26,144.21,13.3227]
[1718517039191,25.6463,144.27,144.21,13.3227]
[1718517039388,2.5648,144.26,144.21,13.3227]
[1718517039704,2.565,144.25,144.21,13.3227]
[1718517039904,25.6493,144.26,144.21,13.3227]
[1718517040092,7.6948,144.26,144.21,13.3227]
[1718517040411,2.5649,144.26,144.21,13.3227]
[1718517041099,25.6473,144.27,144.21,13.3227]
[1718517042926,2.5648,144.26,144.21,13.3227]
[1718517043784,25.6473,144.27,144.21,13.3227]
[1718517044522,7.22276932,144.26,144.21,13.3227]
[1718517046903,7.22276932,144.26,144.22,1.38665008]
[1718517047107,20.0,144.3,144.22,1.38665008]
[1718517047425,7.21941516,144.3,144.22,1.38665008]
[1718517048800,9.78351516,144.3,144.22,1.38665008]
[1718517049392,7.21941516,144.3,144.22,1.38665008]
[1718517049809,9.78351516,144.3,144.22,1.38665008]
[1718517050413,14.91171516,144.3,144.22,1.38665008]
[1718517050821,22.60401516,144.3,144.22,1.38665008]
[1718517051125,2.5642,144.29,144.22,1.38665008]
[1718517051534,32.86051516,144.3,144.22,1.38665008]
[1718517052037,2.5642,144.29,144.22,1.38665008]
[1718517052539,30.29631516,144.3,144.22,1.38665008]
[1718517052725,32.86051516,144.3,144.22,1.38665008]
[1718517052904,2.5643,144.29,144.22,1.38665008]
[1718517054917,7.6928,144.29,144.22,1.38665008]
[1718517057013,15.3856,144.29,144.22,1.38665008]
[1718517057341,2.5644,144.28,144.22,1.38665008]
[1718517058037,15.3857,144.29,144.22,1.38665008]
[1718517059918,2.5644,144.28,144.22,1.38665008]
[1718517062643,7.21941516,144.3,144.24,6.5903]
[1718517062950,23.0729,144.33,144.25,1.8959931]
[1718517062951,17.9456,144.33,144.25,1.8959931]
[1718517063128,15.3816,144.33,144.25,1.8959931]
[1718517063322,23.0723,144.33,144.25,1.8959931]
[1718517063523,2.5637,144.32,144.25,1.8959931]
[1718517063749,7.6912,144.32,144.25,1.8959931]
[1718517064229,2.5639,144.31,144.25,0.51]
[1718517065222,15.3836,144.31,144.24,6.5903]
[1718517066038,7.6918,144.31,144.24,6.5903]
[1718517066240,2.5639,144.31,144.24,6.5903]
[1718517066619,25.6378,144.32,144.24,6.5903]
[1718517066923,7.6914,144.32,144.24,6.5903]
[1718517067438,2.5638,144.32,144.24,6.5903]
[1718517068136,25.6366,144.33,144.24,6.5903]
[1718517069340,7.6905,144.34,144.25,0.17]
[1718517069648,2.5635,144.34,144.25,0.68]
[1718517070144,7.6902,144.34,144.25,0.68]
[1718517070322,15.3804,144.34,144.25,0.68]
[1718517070525,2.5635,144.33,144.25,0.68]
[1718517071233,25.6339,144.34,144.25,0.68]
[1718517071619,7.6902,144.34,144.26,6.686]
[1718517071837,15.3804,144.34,144.26,6.686]
[1718517072032,12.8178,144.33,144.26,6.686]
[1718517072242,23.0721,144.33,144.26,6.686]
[1718517072557,2.5637,144.32,144.26,6.686]
[1718517072746,25.6358,144.33,144.26,6.686]
[1718517073058,2.5637,144.33,144.26,6.686]
[1718517074245,7.6908,144.33,144.26,6.686]
[1718517076069,15.3815,144.33,144.26,6.686]
[1718517076229,7.6908,144.33,144.26,6.686]
[1718517078363,2.5637,144.33,144.26,6.686]
[1718517079563,7.6908,144.33,144.26,6.686]
[1718517079952,17.9444,144.34,144.26,6.686]
[1718517079953,0.17,144.34,144.26,6.686]
[1718517080163,0.68,144.34,144.26,6.686]
[1718517080457,23.0745,144.32,144.26,6.686]
[1718517080662,2.5639,144.31,144.26,6.686]
[1718517081163,7.6917,144.31,144.26,6.686]
[1718517083172,7.6923,144.3,144.26,6.686]
[1718517083961,2.5641,144.3,144.26,6.686]
[1718517084172,25.6395,144.31,144.26,6.686]
[1718517084563,2.5641,144.3,144.26,6.686]
[1718517085847,25.6395,144.31,144.26,6.686]
[1718517086292,23.0755,144.31,144.26,6.686]
[1718517086455,7.6923,144.3,144.24,6.5903]
[1718517086662,25.6414,144.3,144.24,6.5903]
[1718517086858,2.5642,144.29,144.24,6.5903]
[1718517087062,25.6414,144.3,144.24,6.5903]
[1718517087267,22.51973738,144.33,144.24,6.5903]
[1718517087268,23.0785,144.29,144.24,6.5903]
[1718517087495,2.5645,144.28,144.22,6.686]
[1718517087855,25.6431,144.29,144.22,6.686]
[1718517088049,17.9503,144.29,144.22,6.686]
[1718517088251,25.6431,144.29,144.22,6.686]
[1718517088448,7.6925,144.3,144.22,6.686]
[1718517088756,2.5642,144.3,144.22,6.686]
[1718517088981,2.564,144.31,144.22,6.686]
[1718517089153,23.0744,144.32,144.22,6.686]
[1718517089360,7.6918,144.31,144.22,6.686]
[1718517089578,15.3836,144.31,144.22,6.686]
[1718517090179,2.5641,144.3,144.22,6.686]
[1718517090579,23.0741,144.32,144.23,0.17]
[1718517090761,23.0741,144.32,144.23,0.34]
[1718517090762,7.22470229,144.3,144.23,0.34]
[1718517090953,7.22470229,144.3,144.24,6.373]
[1718517094581,9.78880229,144.3,144.24,6.373]
[1718517097672,7.22470229,144.3,144.24,6.373]
[1718517113629,9.78880229,144.3,144.24,6.373]
[1718517114124,7.22470229,144.3,144.24,6.373]
[1718517120741,7.22470229,144.3,144.26,6.686]
[1718517121032,7.6903,144.34,144.26,6.686]
[1718517121240,14.9124716,144.34,144.26,6.686]
[1718517121541,32.8561716,144.34,144.26,6.686]
[1718517122248,2.5635,144.33,144.26,6.686]
[1718517122611,32.8562716,144.34,144.26,6.686]
[1718517123209,2.5636,144.33,144.26,6.686]
[1718517123404,7.6907,144.33,144.26,6.686]
[1718517124779,2.5636,144.33,144.26,6.686]
[1718517125149,7.6907,144.33,144.26,6.686]
[1718517125328,2.5639,144.31,144.26,6.686]
[1718517126262,25.6379,144.32,144.26,6.686]
[1718517126559,15.3828,144.32,144.26,6.686]
[1718517126751,7.6913,144.32,144.26,6.686]
[1718517126936,2.5638,144.32,144.26,6.686]
[1718517127261,12.8184,144.33,144.26,6.686]
[1718517127430,15.382,144.33,144.26,6.686]
[1718517130150,7.6909,144.33,144.26,6.686]
[1718517130450,15.3816,144.33,144.26,6.686]
[1718517130686,7.6909,144.33,144.26,6.686]
[1718517131059,2.5636,144.33,144.26,6.686]
[1718517131588,15.3814,144.33,144.26,6.686]
[1718517131887,2.5637,144.32,144.26,6.686]
[1718517133189,30.2930716,144.34,144.26,6.686]
[1718517133373,2.5636,144.33,144.26,6.686]
[1718517133591,7.6908,144.33,144.26,6.686]
[1718517134871,2.5637,144.32,144.26,6.686]
[1718517135277,23.0738,144.32,144.26,6.686]
[1718517135585,25.6376,144.32,144.26,6.686]
[1718517135890,7.22431213,144.32,144.26,6.686]
[1718517137207,14.91551213,144.32,144.26,6.686]
[1718517137710,22.60671213,144.32,144.26,6.686]
[1718517138211,14.91551213,144.32,144.26,6.686]
[1718517138581,7.22431213,144.32,144.26,6.686]
[1718517140102,5.1283,144.3,144.26,6.686]
[1718517140312,32.86241213,144.32,144.26,6.686]
[1718517140889,14.91581213,144.32,144.26,6.686]
[1718517141207,7.22431213,144.32,144.26,6.686]
[1718517141916,9.78801213,144.32,144.26,6.686]
[1718517143400,2.5639,144.31,144.26,6.686]
[1718517144576,32.86201213,144.32,144.26,6.686]
[1718517145078,14.91561213,144.32,144.26,6.686]
[1718517145277,7.22431213,144.32,144.26,6.686]
[1718517156907,7.22431213,144.32,144.27,0.34]
[1718517157117,2.5634,144.34,144.27,0.34]
[1718517157515,7.22176534,144.35,144.28,12.6972]
[1718517157697,7.22176534,144.35,144.29,0.34]
[1718517157888,2.5627,144.38,144.29,0.34]
[1718517158082,2.5627,144.38,144.3,0.51]
[1718517158288,2.5626,144.38,144.31,0.34]
[1718517159540,7.22026856,144.39,144.31,0.34]
[1718517159835,7.57346662,144.44,144.34,0.17]
[1718517160001,2.5621,144.41,144.34,0.34]
[1718517160203,7.6864,144.41,144.34,0.68]
[1718517160400,15.3728,144.41,144.34,0.68]
[1718517160624,15.3728,144.41,144.34,0.51]
[1718517161331,2.5623,144.4,144.34,0.51]
[1718517161626,25.6216,144.41,144.34,0.51]
[1718517162304,2.5623,144.4,144.34,0.51]
[1718517162520,25.6215,144.41,144.34,0.51]
[1718517163244,2.5623,144.4,144.34,0.51]
[1718517165119,7.6875,144.39,144.33,6.0112]
[1718517167135,2.5625,144.39,144.33,6.0112]
[1718517168138,25.6236,144.4,144.33,6.0112]
[1718517169059,17.9365,144.4,144.33,6.0112]
[1718517169249,7.6872,144.4,144.33,6.0112]
[1718517169559,15.3742,144.4,144.33,6.0112]
[1718517169869,7.6872,144.4,144.33,6.0112]
[1718517170655,14.90677613,144.4,144.33,6.0112]
[1718517171454,20.03137613,144.4,144.33,6.0112]
[1718517171649,14.90677613,144.4,144.33,6.0112]
[1718517172036,7.21957613,144.4,144.33,6.0112]
[1718517172539,9.78187613,144.4,144.33,6.0112]
[1718517173253,7.21957613,144.4,144.34,0.17]
[1718517173559,7.21957613,144.4,144.34,0.34]
[1718517173768,9.78197613,144.4,144.33,6.0112]
[1718517174669,14.90657613,144.4,144.33,6.0112]
[1718517175161,9.78197613,144.4,144.33,6.0112]
[1718517177873,7.21957613,144.4,144.34,0.17]
[1718517178070,7.21957613,144.4,144.35,6.686]
[1718517178253,7.6853,144.43,144.35,6.686]
[1718517178463,30.27666385,144.43,144.35,6.686]
[1718517178666,32.83856385,144.43,144.35,6.686]
[1718517178861,2.5619,144.42,144.35,6.686]
[1718517180854,7.22046385,144.43,144.35,6.686]
[1718517181053,23.0598,144.41,144.35,6.686]
[1718517181357,25.6221,144.41,144.35,6.686]
[1718517181545,2.5623,144.4,144.35,6.686]
[1718517181969,5.125,144.39,144.35,6.686]
[1718517182182,7.6877,144.39,144.33,6.0112]
[1718517182484,15.3752,144.39,144.33,6.0112]
[1718517183175,2.5626,144.39,144.33,6.0112]
[1718517183579,7.6876,144.39,144.33,6.0112]
[1718517183785,2.5626,144.39,144.33,6.0112]
[1718517184477,25.6237,144.4,144.33,6.0112]
[1718517185276,7.6872,144.4,144.33,6.0112]
[1718517186754,2.5625,144.39,144.33,6.0112]
[1718517189272,0.17,144.42,144.33,6.0112]
[1718517189445,23.2284,144.42,144.33,6.0112]
[1718517189645,0.34,144.41,144.33,6.0112]
[1718517190080,2.9021,144.41,144.33,6.0112]
[1718517190280,8.0264,144.41,144.33,6.0112]
[1718517190467,2.9021,144.41,144.33,6.0112]
[1718517191158,8.0264,144.41,144.33,6.0112]
[1718517192169,15.7128,144.41,144.33,6.0112]
[1718517192979,2.5621,144.41,144.33,6.0112]
[1718517193175,25.6206,144.42,144.33,6.0112]
[1718517193758,20.0,144.44,144.34,0.17]
[1718517193957,17.9327,144.43,144.35,6.686]
[1718517194176,2.5621,144.41,144.35,6.686]
[1718517194379,23.0587,144.42,144.35,6.686]
[1718517194589,2.5621,144.41,144.35,6.686]
[1718517194959,23.0587,144.42,144.35,6.686]
[1718517195292,7.6862,144.42,144.35,6.686]
[1718517195970,2.5621,144.42,144.35,6.686]
[1718517196170,9.78611144,144.43,144.35,6.686]
[1718517196367,7.22431144,144.43,144.35,6.686]
[1718517196593,17.47141144,144.43,144.35,6.686]
[1718517196795,2.5621,144.42,144.35,6.686]
[1718517197269,7.6861,144.42,144.35,6.686]
[1718517197470,15.372,144.42,144.35,6.686]
[1718517197854,7.6865,144.41,144.35,6.686]
[1718517198057,2.5622,144.41,144.35,6.686]
[1718517198258,25.6203,144.42,144.35,6.686]
[1718517198453,7.6862,144.42,144.35,6.686]
[1718517198685,32.84311144,144.43,144.35,6.686]
[1718517199291,14.90991144,144.43,144.35,6.686]
[1718517199475,7.22431144,144.43,144.35,6.686]
[1718517200172,22.59521144,144.43,144.35,6.686]
[1718517200887,2.5619,144.42,144.35,6.686]
[1718517201593,5.1244,144.41,144.35,6.686]
[1718517201792,2.5623,144.4,144.35,6.686]
[1718517202273,25.6218,144.41,144.35,6.686]
[1718517202793,15.373,144.41,144.35,6.686]
[1718517203290,7.6866,144.41,144.35,6.686]
[1718517204094,2.5622,144.41,144.35,6.686]
[1718517204477,9.78714786,144.41,144.35,6.686]
[1718517205170,7.22494786,144.41,144.35,6.686]
[1718517205370,9.78704786,144.41,144.35,6.686]
[1718517205902,7.22494786,144.41,144.35,6.686]
[1718517206189,0.17,144.4,144.33,6.0112]
[1718517206364,5.1257,144.37,144.31,6.686]
[1718517206569,2.563,144.36,144.31,6.686]
[1718517206786,7.6891,144.36,144.31,6.686]
[1718517206989,2.563,144.36,144.31,6.686]
[1718517207172,23.0663,144.37,144.31,6.686]
[1718517207391,10.9321,144.36,144.29,6.6571]
[1718517207579,8.0297,144.35,144.29,6.6571]
[1718517207901,15.7193,144.35,144.29,6.6571]
[1718517208097,2.5631,144.36,144.29,6.6571]
[1718517208266,7.6886,144.37,144.29,6.6571]
[1718517208466,15.3771,144.37,144.29,6.6571]
[1718517208768,2.733,144.36,144.29,6.6571]
[1718517208997,7.859,144.36,144.29,6.6571]
[1718517209179,15.5481,144.36,144.29,6.6571]
[1718517209390,25.8004,144.36,144.29,6.6571]
[1718517209890,2.5632,144.35,144.29,6.6571]
[1718517210084,25.8004,144.36,144.29,6.6571]
[1718517210282,7.8591,144.36,144.29,6.6571]
[1718517211078,7.6888,144.37,144.29,6.6571]
[1718517211306,2.5629,144.37,144.29,6.6571]
[1718517211518,15.5462,144.38,144.29,6.6571]
[1718517211898,7.6885,144.37,144.29,6.6571]
[1718517212821,15.3771,144.37,144.29,6.6571]
[1718517213821,5.65,144.34,144.29,6.6571]
[1718517214801,5.65,144.33,144.29,6.6571]
[1718517220425,7.22558464,144.35,144.29,6.6571]
[1718517220604,5.65,144.34,144.29,6.6571]
[1718517221604,5.65,144.33,144.29,6.6571]
[1718517223123,5.65,144.31,144.29,6.6571]
[1718517228320,7.2234479,144.33,144.29,6.6571]
[1718517228535,5.65,144.31,144.29,6.6571]
[1718517229230,12.8734479,144.33,144.29,6.6571]
[1718517232334,7.2234479,144.33,144.29,6.6571]
[1718517232541,12.8734479,144.33,144.29,6.6571]
[1718517232746,7.2234479,144.33,144.29,6.6571]
[1718517234838,12.8734479,144.33,144.29,6.6571]
[1718517236224,5.65,144.32,144.29,6.6571]
[1718517237133,5.65,144.32,144.28,6.686]
[1718517237449,5.65,144.31,144.28,6.686]
[1718517246744,5.65,144.31,144.25,12.2742]
[1718517246953,9.7870479,144.33,144.25,12.2742]
[1718517246954,7.6912,144.32,144.25,6.6242]
[1718517247129,2.5637,144.32,144.25,6.6242]
[1718517247956,32.8598479,144.33,144.25,6.6242]
[1718517248347,25.6364,144.33,144.25,6.6242]
[1718517248945,7.6909,144.33,144.25,6.6242]
[1718517249139,46.3513,144.34,144.25,6.6242]
[1718517249346,3.2435,144.33,144.25,6.6242]
[1718517251365,5.65,144.31,144.25,12.2742]
[1718517251567,5.65,144.32,144.26,5.65]
[1718517252250,7.6893,144.36,144.27,5.65]
[1718517252443,5.65,144.33,144.27,5.65]
[1718517252761,5.65,144.33,144.28,6.686]
[1718517252963,23.0663,144.37,144.28,12.336]
[1718517253167,5.65,144.34,144.28,12.336]
[1718517253774,5.65,144.34,144.29,5.65]
[1718517253974,5.65,144.34,144.28,12.336]
[1718517254172,5.65,144.33,144.28,12.336]
[1718517256173,5.65,144.33,144.28,6.686]
[1718517259359,7.21848222,144.36,144.28,6.686]
[1718517259563,5.65,144.34,144.28,12.336]
[1718517260165,5.65,144.34,144.29,0.52999149]
[1718517260848,9.78148222,144.36,144.29,0.52999149]
[1718517261048,5.65,144.34,144.29,0.52999149]
[1718517262173,5.65,144.35,144.29,12.33459149]
[1718517262373,5.65,144.35,144.3,0.52995476]
[1718517263148,7.21848222,144.36,144.3,0.52995476]
[1718517263347,5.65,144.35,144.3,0.52995476]
[1718517264681,5.65,144.34,144.29,6.1546]
[1718517265576,5.65,144.33,144.29,6.1546]
[1718517267163,5.65,144.32,144.29,6.1546]
[1718517267552,5.65,144.32,144.28,6.686]
[1718517267966,2.5636,144.33,144.25,6.1546]
[1718517268168,5.65,144.3,144.25,6.1546]
[1718517269896,5.65,144.32,144.26,5.65]
[1718517270056,7.22212775,144.33,144.26,5.65]
[1718517270259,5.65,144.32,144.26,5.65]
[1718517272689,7.22212775,144.33,144.26,5.65]
[1718517272984,5.65,144.32,144.26,5.65]
[1718517276780,7.22212775,144.33,144.27,5.65]
[1718517276991,5.65,144.34,144.28,5.65]
[1718517277469,15.3785,144.36,144.28,5.65]
[1718517277665,5.65,144.34,144.28,5.65]
[1718517278272,2.5632,144.35,144.28,5.65]
[1718517278580,5.65,144.34,144.28,5.65]
[1718517278791,2.5632,144.35,144.28,5.65]
[1718517278965,5.65,144.34,144.28,5.65]
[1718517279166,2.5631,144.36,144.29,5.65]
[1718517279362,12.35644191,144.37,144.29,5.65]
[1718517279693,7.23064191,144.37,144.32,5.65]
[1718517279889,8.2127,144.38,144.32,5.65]
[1718517280183,5.65,144.37,144.31,5.65]
[1718517280388,8.2128,144.37,144.31,5.65]
[1718517280619,5.65,144.37,144.31,5.65]
[1718517280903,8.2128,144.37,144.31,5.65]
[1718517281100,2.5628,144.37,144.31,5.65]
[1718517281272,5.65,144.36,144.31,5.65]
[1718517283120,5.65,144.37,144.31,5.65]
[1718517285894,8.2128,144.37,144.31,5.65]
[1718517286099,5.65,144.37,144.31,5.65]
[1718517288599,5.65,144.37,144.3,18.588]
[1718517292574,5.65,144.37,144.3,12.938]
[1718517292804,5.65,144.38,144.32,5.65]
[1718517293811,7.22934515,144.39,144.34,5.65]
[1718517294018,5.65,144.4,144.34,5.65]
[1718517297307,8.2123,144.4,144.34,5.65]
[1718517297610,14.91412098,144.42,144.35,18.8822]
[1718517297791,5.65,144.41,144.36,1.27056154]
[1718517298384,5.65,144.4,144.36,1.27056154]
[1718517298790,5.65,144.4,144.35,18.8822]
[1718517299199,5.65,144.39,144.35,6.686]
[1718517300297,5.1251,144.39,144.35,6.686]
[1718517300603,5.65,144.37,144.32,6.686]
[1718517300807,2.5623,144.4,144.32,12.336]
[1718517301002,25.6221,144.41,144.32,12.336]
[1718517301185,5.65,144.38,144.32,12.336]
[1718517301786,5.65,144.38,144.33,0.17]
[1718517302009,5.65,144.39,144.33,5.82]
[1718517303312,5.65,144.39,144.33,5.65]
[1718517303486,5.65,144.37,144.32,12.336]
[1718517303906,5.65,144.37,144.32,6.686]
[1718517305797,0.17,144.39,144.32,6.686]
[1718517306002,5.65,144.35,144.32,6.686]
[1718517307328,5.65,144.36,144.32,6.686]
[1718517307618,30.2921471,144.4,144.32,6.686]
[1718517307789,5.65,144.37,144.32,6.686]
[1718517308208,32.8545471,144.4,144.32,6.686]
[1718517308209,14.9178471,144.4,144.32,6.686]
[1718517308417,5.65,144.38,144.32,6.686]
[1718517308617,5.65,144.38,144.32,12.336]
[1718517309504,32.8539471,144.4,144.32,12.336]
[1718517309712,5.65,144.37,144.32,6.686]
[1718517310409,5.65,144.36,144.32,6.686]
[1718517312728,5.65,144.35,144.32,6.686]
[1718517316421,5.65,144.36,144.32,6.686]
[1718517317455,5.65,144.35,144.32,6.686]
[1718517319934,5.65,144.35,144.31,6.5462]
[1718517320317,5.65,144.33,144.28,6.686]
[1718517320505,5.65,144.32,144.28,6.686]
[1718517322940,5.65,144.33,144.28,6.686]
[1718517334943,5.65,144.32,144.28,6.686]
[1718517339964,2.5634,144.34,144.25,6.4291]
[1718517340175,5.1271,144.33,144.25,13.1151]
[1718517340340,23.0756,144.31,144.22,12.9365]
[1718517340662,5.65,144.25,144.22,12.9365]
[1718517340862,5.65,144.26,144.22,12.9365]
[1718517342231,21.5973,144.26,144.2,5.65]
[1718517342451,5.65,144.23,144.16,12.9365]
[1718517342662,5.65,144.23,144.17,5.65]
[1718517343466,5.65,144.22,144.16,18.5865]
[1718517345072,5.65,144.22,144.17,0.34]
[1718517345875,5.65,144.23,144.17,5.99]
[1718517346239,5.65,144.23,144.17,0.34]
[1718517347676,5.65,144.25,144.19,5.65]
[1718517348589,6.2313,144.28,144.2,5.65]
[1718517348759,5.65,144.26,144.2,5.65]
[1718517349161,15.9473,144.3,144.22,5.65]
[1718517349480,5.65,144.28,144.22,5.65]
[1718517357113,23.17461005,144.3,144.22,18.4469]
[1718517357276,5.65,144.29,144.23,5.65]
[1718517360181,5.65,144.29,144.22,12.7969]
[1718517360388,5.65,144.28,144.22,18.4469]
[1718517360785,5.65,144.28,144.22,12.7969]
[1718517361097,5.65,144.28,144.22,18.4469]
[1718517362299,5.65,144.28,144.22,12.7969]
[1718517362506,5.65,144.28,144.22,18.4469]
[1718517365123,5.65,144.29,144.23,5.65]
[1718517368782,7.6914,144.32,144.23,5.65]
[1718517368991,5.65,144.29,144.23,5.65]
[1718517369197,5.65,144.29,144.23,5.82]
[1718517369433,5.65,144.28,144.23,0.17]
[1718517369637,5.65,144.28,144.23,0.68]
[1718517371420,5.65,144.29,144.23,6.33]
[1718517372603,5.65,144.29,144.23,0.68]
[1718517372923,5.65,144.29,144.23,6.33]
[1718517377828,46.66304454,144.33,144.23,6.33]
[1718517377829,5.65,144.31,144.25,5.65]
[1718517378040,5.65,144.31,144.26,5.65]
[1718517378333,7.22524454,144.33,144.26,5.65]
[1718517378531,5.65,144.31,144.26,5.65]
[1718517378734,7.22524454,144.33,144.26,5.65]
[1718517378903,5.65,144.32,144.26,5.65]
[1718517380313,2.5637,144.32,144.23,0.51]
[1718517380515,5.65,144.29,144.24,5.65]
[1718517381230,5.65,144.29,144.23,6.16]
[1718517387140,22.77,144.34,144.22,12.7969]
[1718517387360,5.65,144.27,144.22,12.7969]
[1718517387664,5.65,144.26,144.22,12.7969]
[1718517388935,5.65,144.27,144.22,12.7969]
[1718517390452,5.65,144.26,144.22,12.7969]
[1718517392051,7.22539375,144.3,144.22,12.7969]
[1718517392255,5.65,144.27,144.22,12.7969]
[1718517392562,7.22539375,144.3,144.22,12.7969]
[1718517392853,5.65,144.27,144.22,12.7969]
[1718517408783,5.65,144.28,144.22,18.4469]
[1718517409162,7.22539375,144.3,144.23,0.17]
[1718517409380,5.65,144.29,144.23,5.99]
[1718517415390,5.65,144.28,144.23,0.34]
[1718517421595,103.63030523,144.43,144.24,0.17]
[1718517421770,22.6,144.34,144.25,0.17]
[1718517421972,7.22678631,144.34,144.27,0.17]
[1718517422188,5.65,144.33,144.27,5.99]
[1718517423281,5.65,144.33,144.27,0.34]
[1718517424397,5.65,144.31,144.26,13.0469]
[1718517424904,5.65,144.31,144.26,18.6969]
[1718517425219,5.65,144.32,144.27,0.17]
[1718517425380,5.65,144.32,144.27,0.34]
[1718517427711,5.65,144.28,144.2,5.65]
[1718517427878,5.65,144.26,144.2,5.65]
[1718517429115,5.65,144.26,144.21,0.17]
[1718517429331,5.65,144.26,144.21,0.34]
[1718517429810,5.65,144.26,144.2,5.65]
[1718517431303,5.65,144.25,144.2,5.65]
[1718517431910,5.65,144.26,144.2,5.65]
[1718517433604,5.65,144.27,144.21,5.82]
[1718517439343,5.65,144.26,144.21,0.17]
[1718517443151,7.2334932,144.29,144.22,5.82]
[1718517443456,5.65,144.28,144.22,5.82]
[1718517445478,5.65,144.27,144.22,0.17]
[1718517445631,5.65,144.27,144.22,0.51]
[1718517452569,5.65,144.26,144.22,0.51]
[1718517453461,5.65,144.26,144.21,0.17]
[1718517453652,5.65,144.26,144.21,0.34]
[1718517453851,5.65,144.25,144.21,0.34]
[1718517457160,5.65,144.26,144.21,0.34]
[1718517457477,5.65,144.26,144.19,6.686]
[1718517457668,5.65,144.26,144.2,5.82]
[1718517458576,5.65,144.26,144.21,0.17]
[1718517458948,5.65,144.26,144.21,5.82]
[1718517460267,9.79842658,144.3,144.21,5.82]
[1718517460468,5.65,144.26,144.21,5.82]
[1718517462282,5.65,144.26,144.2,5.99]
[1718517463777,5.65,144.27,144.21,5.65]
[1718517468484,5.65,144.27,144.2,5.99]
[1718517469963,7.23432658,144.3,144.2,0.17]
[1718517470278,5.65,144.25,144.2,0.17]
[1718517470866,2.5646,144.28,144.2,0.17]
[1718517471085,5.65,144.25,144.2,0.17]
[1718517476498,5.65,144.25,144.2,5.82]
[1718517480677,5.65,144.26,144.2,5.82]
[1718517481604,5.65,144.25,144.2,5.82]
[1718517481970,5.65,144.25,144.2,0.17]
[1718517482599,5.65,144.25,144.2,0.34]
[1718517482801,5.65,144.26,144.2,5.99]
[1718517483795,48.65965192,144.31,144.21,5.65]
[1718517483796,30.03175192,144.31,144.21,5.65]
[1718517483996,30.03175192,144.31,144.22,6.33]